bitfinex/quotes_SOLUSD_20241013
["timestamp","ask_amount","ask_price","bid_price","bid_amount"]
[1728826802586,6.7692,147.73,147.68,0.8262773]
[1728826802966,6.7687,147.74,147.69,6.7708]
[1728826804374,6.7692,147.73,147.69,6.7708]
[1728826804580,6.7692,147.73,147.69,20.0]
[1728826805697,15.8498,147.75,147.69,6.7708]
[1728826805908,15.8498,147.75,147.68,0.8262773]
[1728826805909,15.8498,147.75,147.71,6.7698]
[1728826806190,22.6183,147.75,147.7,8.12439814]
[1728826806381,22.6183,147.75,147.7,6.7704]
[1728826806799,16.9153,147.8,147.71,1.35394583]
[1728826806800,16.5751,147.79,147.71,1.35394583]
[1728826807015,23.3414,147.79,147.75,6.7681]
[1728826807326,6.1268,147.81,147.75,6.7681]
[1728826807512,6.7664,147.79,147.75,6.7681]
[1728826808178,6.7668,147.78,147.71,6.1057]
[1728826808391,6.7673,147.77,147.74,20.0]
[1728826809595,6.7669,147.78,147.74,20.0]
[1728826810488,6.7669,147.78,147.72,20.0]
[1728826810685,6.7669,147.78,147.74,6.7684]
[1728826816389,6.7669,147.78,147.74,20.0]
[1728826816708,6.7677,147.76,147.74,20.0]
[1728826817386,6.7677,147.76,147.73,20.0]
[1728826817590,6.7673,147.77,147.73,20.0]
[1728826817791,6.7673,147.77,147.74,20.0]
[1728826819913,6.7673,147.77,147.69,24.7587856]
[1728826820097,6.7673,147.77,147.73,20.0]
[1728826820513,23.776884,147.8,147.73,20.0]
[1728826820818,6.7666,147.79,147.7,1.35381276]
[1728826821006,6.7666,147.79,147.69,20.0]
[1728826821007,30.542784,147.8,147.76,6.7676]
[1728826821994,30.542784,147.8,147.71,1.3535345]
[1728826822196,30.542784,147.8,147.75,6.768]
[1728826825005,6.1268,147.81,147.72,1.35360188]
[1728826825006,6.1268,147.81,147.72,21.35360188]
[1728826825695,12.8923,147.81,147.77,6.7671]
[1728826825896,6.7655,147.81,147.77,6.7671]
[1728826831723,6.7655,147.81,147.76,6.7676]
[1728826832699,23.776884,147.82,147.72,26.5003]
[1728826832901,6.7667,147.79,147.75,6.7681]
[1728826833121,6.7671,147.78,147.74,6.7685]
[1728826833533,40.689884,147.82,147.74,20.0]
[1728826833534,6.7674,147.77,147.74,20.0]
[1728826833728,6.7677,147.76,147.74,20.0]
[1728826834030,6.7677,147.76,147.73,20.0]
[1728826834840,33.4865,147.83,147.72,1.35375308]
[1728826835036,6.7669,147.78,147.74,6.7685]
[1728826836523,6.7664,147.79,147.75,8.1216779]
[1728826836835,6.7664,147.79,147.75,6.7681]
[1728826839534,23.776884,147.82,147.76,1.35352517]
[1728826839709,6.7657,147.81,147.77,6.7671]
[1728826840031,6.7657,147.81,147.76,6.7673]
[1728826841937,6.7657,147.81,147.77,6.7672]
[1728826846037,6.7657,147.81,147.73,20.0]
[1728826846341,6.766,147.8,147.75,6.7678]
[1728826846518,6.766,147.8,147.76,20.0]
[1728826846721,6.766,147.8,147.76,6.7677]
[1728826851737,23.776884,147.82,147.73,20.0]
[1728826851956,6.7665,147.79,147.76,20.0]
[1728826863854,6.766,147.8,147.76,6.7677]
[1728826866450,16.5751,147.83,147.77,1.35342747]
[1728826866652,16.5751,147.83,147.74,1.35321973]
[1728826867271,16.5751,147.83,147.79,6.766]
[1728826867478,16.5751,147.83,147.8,6.7656]
[1728826869761,6.7641,147.84,147.8,6.7656]
[1728826871963,6.7649,147.83,147.78,6.7664]
[1728826872253,23.776884,147.86,147.79,6.766]
[1728826872478,6.7641,147.84,147.79,6.766]
[1728826877873,6.7641,147.84,147.77,0.2926724]
[1728826878182,6.7641,147.84,147.8,6.7658]
[1728826882683,6.7645,147.83,147.79,6.7663]
[1728826887397,6.765,147.82,147.79,20.0]
[1728826887582,23.776884,147.86,147.77,0.2926724]
[1728826887583,6.7659,147.8,147.77,0.2926724]
[1728826887786,16.571,147.83,147.77,0.2926724]
[1728826887787,6.3525,147.82,147.77,0.2926724]
[1728826887970,6.7662,147.8,147.77,0.2926724]
[1728826889294,6.7662,147.8,147.77,20.2926724]
[1728826894071,23.776884,147.81,147.77,0.2926724]
[1728826894277,6.3525,147.82,147.77,0.2926724]
[1728826894278,6.7664,147.79,147.77,0.2926724]
[1728826894891,6.7668,147.78,147.77,0.2926724]
[1728826897097,6.7664,147.79,147.77,0.2926724]
[1728826897601,6.7668,147.78,147.77,0.2926724]
[1728826904507,30.543684,147.78,147.77,0.2926724]
[1728826904692,46.529884,147.78,147.77,0.2926724]
[1728826933047,30.543684,147.78,147.77,0.2926724]
[1728826935326,16.4182,147.81,147.77,0.2926724]
[1728826935645,6.7667,147.79,147.77,0.2926724]
[1728826937145,6.7668,147.78,147.77,0.2926724]
[1728826944933,30.543684,147.78,147.77,0.2926724]
[1728826979773,50.543684,147.78,147.77,0.2926724]
[1728826981199,73.656984,147.78,147.77,7.24e-05]
[1728826982975,80.89925602,147.78,147.77,7.24e-05]
[1728826984674,6.771,147.69,147.65,6.7726]
[1728826996418,23.776884,147.73,147.65,6.7726]
[1728826996714,6.7706,147.7,147.65,6.7726]
[1728826999525,6.7709,147.69,147.65,6.7726]
[1728827004150,23.776884,147.71,147.64,20.0]
[1728827004325,23.776884,147.71,147.6,13.0248]
[1728827005420,6.7719,147.67,147.63,6.7736]
[1728827011326,6.7719,147.67,147.62,7.6175888]
[1728827012238,6.7719,147.67,147.63,6.7736]
[1728827020331,6.7719,147.67,147.62,7.6176888]
[1728827021255,6.7723,147.66,147.62,7.6176888]
[1728827025055,6.772,147.67,147.62,7.6176888]
[1728827029452,6.7723,147.66,147.62,7.6176888]
[1728827030749,6.7729,147.65,147.62,0.8436888]
[1728827032443,6.7726,147.66,147.62,7.6177888]
[1728827038062,6.7723,147.66,147.62,7.6174888]
[1728827038270,23.776884,147.69,147.62,7.6174888]
[1728827038454,6.7721,147.67,147.62,7.6174888]
[1728827038659,6.7721,147.67,147.63,6.7735]
[1728827041159,6.77,147.71,147.67,6.7715]
[1728827041361,6.7709,147.69,147.64,20.0]
[1728827041750,6.7709,147.69,147.62,20.8436888]
[1728827044572,23.776884,147.73,147.62,20.8436888]
[1728827044779,6.7705,147.7,147.65,6.7724]
[1728827045453,6.7705,147.7,147.63,1.35438294]
[1728827045654,6.7705,147.7,147.66,6.7722]
[1728827047778,6.7701,147.71,147.67,6.7717]
[1728827050070,6.7696,147.72,147.68,6.7712]
[1728827050768,30.546084,147.73,147.63,7.63018702]
[1728827051070,30.546084,147.73,147.69,6.7707]
[1728827051865,30.546084,147.73,147.64,20.0]
[1728827052071,6.7692,147.73,147.68,6.7712]
[1728827052277,6.7692,147.73,147.65,1.35415018]
[1728827052470,6.7692,147.73,147.69,6.7708]
[1728827053100,22.2296,147.74,147.7,6.7704]
[1728827054479,6.7682,147.75,147.71,6.7699]
[1728827066379,6.7682,147.75,147.7,6.7703]
[1728827070906,6.7678,147.76,147.72,6.7694]
[1728827073202,6.7678,147.76,147.71,6.7698]
[1728827074790,6.7678,147.76,147.67,21.3538228]
[1728827074995,6.7678,147.76,147.72,6.7694]
[1728827089812,16.2936,147.78,147.73,1.35374758]
[1728827090005,23.0604,147.78,147.74,6.7686]
[1728827092916,23.0604,147.78,147.73,6.7689]
[1728827099995,6.7686,147.74,147.7,6.7703]
[1728827100301,6.7694,147.73,147.65,13.0248]
[1728827101928,6.7694,147.73,147.66,20.0]
[1728827102294,6.7694,147.73,147.67,1.35408135]
[1728827102599,23.3424,147.74,147.7,6.7703]
[1728827105501,23.3424,147.74,147.69,6.7708]
[1728827109216,16.5737,147.74,147.69,6.7708]
[1728827109420,16.5737,147.74,147.64,20.0]
[1728827109421,6.7703,147.71,147.64,20.0]
[1728827109656,23.776884,147.73,147.63,20.0]
[1728827110624,6.7709,147.69,147.64,6.7729]
[1728827111311,6.7709,147.69,147.62,0.8436888]
[1728827111514,23.3443,147.7,147.63,1.35438413]
[1728827111711,16.5737,147.7,147.66,6.7722]
[1728827113524,16.5737,147.7,147.67,8.12602803]
[1728827113826,6.1685,147.71,147.67,6.7717]
[1728827114126,12.9386,147.71,147.67,6.7717]
[1728827118723,6.1685,147.71,147.63,20.0]
[1728827119207,6.1685,147.71,147.62,0.8436888]
[1728827120233,6.7715,147.68,147.65,20.0]
[1728827121631,6.7715,147.68,147.63,6.7735]
[1728827121929,6.7718,147.67,147.64,20.0]
[1728827122111,6.7714,147.68,147.64,6.7729]
[1728827127646,6.771,147.69,147.65,6.7726]
[1728827131644,16.283,147.7,147.62,2.19809123]
[1728827131855,16.283,147.7,147.63,1.35431294]
[1728827132732,16.283,147.7,147.67,6.7718]
[1728827139652,6.7695,147.72,147.68,6.7711]
[1728827139827,15.5551,147.73,147.69,1.35411921]
[1728827140027,6.3378,147.75,147.7,6.77]
[1728827140028,13.1061,147.75,147.7,6.77]
[1728827141126,13.1061,147.75,147.71,6.7699]
[1728827141552,6.7678,147.76,147.71,6.7699]
[1728827141729,6.7678,147.76,147.65,1.35398472]
[1728827141730,15.5551,147.77,147.65,1.35398472]
[1728827142052,6.7695,147.73,147.68,6.7712]
[1728827142222,6.7695,147.73,147.69,20.0]
[1728827142424,6.7695,147.73,147.69,6.7709]
[1728827154668,6.7687,147.74,147.7,6.7704]
[1728827157652,6.7682,147.75,147.71,6.77]
[1728827160470,15.5551,147.77,147.72,1.3538561]
[1728827160675,15.5551,147.77,147.75,6.7678]
[1728827160856,15.5551,147.77,147.74,6.7686]
[1728827163171,6.7668,147.78,147.74,6.7686]
[1728827163843,13.1041,147.79,147.75,6.7681]
[1728827164474,6.3378,147.79,147.7,20.0]
[1728827164686,6.7668,147.78,147.74,6.7685]
[1728827167557,6.3378,147.79,147.74,6.7685]
[1728827167754,30.542784,147.8,147.76,6.7676]
[1728827168969,30.542784,147.8,147.71,14.37835944]
[1728827169152,30.542784,147.8,147.75,6.768]
[1728827169847,6.7659,147.8,147.75,6.768]
[1728827170871,22.3327,147.81,147.76,6.7674]
[1728827172266,22.3327,147.81,147.76,6.7675]
[1728827173072,22.3327,147.81,147.73,1.35336674]
[1728827173249,22.3327,147.81,147.77,6.7672]
[1728827176752,15.5672,147.81,147.78,6.7666]
[1728827176954,15.5672,147.81,147.77,6.7671]
[1728827177880,22.3327,147.81,147.77,6.7671]
[1728827187580,23.776884,147.8,147.72,20.0]
[1728827187788,6.7673,147.77,147.74,20.0]
[1728827187985,23.776884,147.8,147.74,20.0]
[1728827188172,6.7668,147.78,147.74,26.7685]
[1728827192995,6.7665,147.79,147.74,26.7685]
[1728827193773,6.7665,147.79,147.75,6.768]
[1728827194477,15.5672,147.81,147.77,6.7669]
[1728827194773,15.5672,147.81,147.78,6.7664]
[1728827196473,15.5672,147.81,147.77,6.7671]
[1728827197182,6.765,147.82,147.77,6.7671]
[1728827197386,6.7656,147.81,147.76,6.7675]
[1728827197580,23.776884,147.82,147.72,20.0]
[1728827197975,6.768,147.76,147.72,6.7695]
[1728827199297,6.768,147.76,147.68,19.1944]
[1728827199298,6.7686,147.74,147.7,6.7703]
[1728827199795,6.7694,147.73,147.68,6.7709]
[1728827200171,6.7694,147.73,147.65,13.0248]
[1728827200390,6.7694,147.73,147.69,6.7708]
[1728827204685,6.7687,147.74,147.66,1.35410073]
[1728827204895,6.7687,147.74,147.7,6.7703]
[1728827209502,6.7683,147.75,147.7,6.7703]
[1728827209807,6.7683,147.75,147.66,1.3540432]
[1728827209808,16.3044,147.76,147.72,6.7695]
[1728827210003,16.3044,147.76,147.71,6.7699]
[1728827210004,6.7681,147.75,147.71,6.7699]
[1728827210187,16.3044,147.76,147.71,6.7699]
[1728827210392,23.0722,147.76,147.67,20.0]
[1728827210587,23.0722,147.76,147.72,6.7693]
[1728827211503,16.3044,147.76,147.72,6.7693]
[1728827211811,6.7673,147.77,147.73,6.769]
[1728827212307,6.7673,147.77,147.73,6.735]
[1728827216406,23.776884,147.79,147.73,6.735]
[1728827216611,6.7669,147.78,147.74,6.7685]
[1728827225411,6.7664,147.79,147.75,6.7681]
[1728827225595,16.3044,147.8,147.71,1.35365612]
[1728827225799,16.3044,147.8,147.71,21.35365612]
[1728827226519,23.0703,147.8,147.71,21.35365612]
[1728827226823,23.0703,147.8,147.76,6.7675]
[1728827228824,16.3044,147.8,147.76,6.7675]
[1728827230605,6.0311,147.81,147.78,6.7668]
[1728827231123,6.765,147.82,147.77,6.7671]
[1728827236223,15.7568,147.83,147.73,23.776884]
[1728827236412,22.5214,147.83,147.79,6.7663]
[1728827238104,22.5214,147.83,147.74,1.35325741]
[1728827238308,6.765,147.82,147.78,6.7666]
[1728827244633,15.7568,147.83,147.72,1.35327125]
[1728827244816,22.5214,147.83,147.79,6.7662]
[1728827246635,22.5214,147.83,147.74,6.6599]
[1728827246840,22.5214,147.83,147.79,6.766]
[1728827251834,22.5214,147.83,147.75,20.0]
[1728827252040,22.5214,147.83,147.79,6.7662]
[1728827255544,15.7568,147.83,147.76,20.0]
[1728827255846,15.7568,147.83,147.81,6.7653]
[1728827256942,15.7568,147.83,147.8,6.7658]
[1728827261520,15.7568,147.83,147.8,6.7658]
[1728827263531,22.5213,147.83,147.79,6.7662]
[1728827265940,15.7568,147.83,147.79,6.7662]
[1728827266151,15.7568,147.83,147.8,6.7657]
[1728827266323,16.0908,147.87,147.81,1.35313057]
[1728827266531,16.0908,147.87,147.78,20.0]
[1728827267138,22.8536,147.87,147.82,6.7646]
[1728827267428,6.2925,147.89,147.84,6.7639]
[1728827267651,6.7613,147.9,147.85,6.7631]
[1728827269466,6.7618,147.89,147.85,6.7631]
[1728827269750,6.7631,147.86,147.82,6.7648]
[1728827269960,6.763,147.87,147.83,20.0]
[1728827271423,23.776884,147.9,147.79,6.5071]
[1728827271742,23.776884,147.9,147.77,13.0248]
[1728827271743,6.764,147.84,147.8,6.7657]
[1728827272537,6.7637,147.85,147.8,6.7657]
[1728827275968,6.7637,147.85,147.81,6.7653]
[1728827283857,6.7637,147.85,147.78,20.0]
[1728827284035,6.7637,147.85,147.8,6.7658]
[1728827299459,23.776884,147.85,147.77,13.0248]
[1728827299663,6.7654,147.81,147.78,20.0]
[1728827303251,6.7651,147.82,147.79,20.0]
[1728827304156,23.776884,147.83,147.79,20.0]
[1728827304354,23.776884,147.83,147.79,6.766]
[1728827304355,6.7646,147.83,147.79,6.766]
[1728827308681,12.7818,147.84,147.8,6.7658]
[1728827310384,6.7637,147.85,147.81,6.7653]
[1728827311986,6.7646,147.83,147.77,20.0]
[1728827312566,6.7646,147.83,147.79,6.7662]
[1728827314658,16.0908,147.86,147.8,1.35316443]
[1728827314862,16.0908,147.86,147.82,6.7645]
[1728827315086,16.0908,147.86,147.83,6.7644]
[1728827315766,16.0908,147.86,147.79,20.0]
[1728827316563,6.7638,147.85,147.81,6.7654]
[1728827319068,16.0908,147.86,147.83,6.7643]
[1728827319269,6.0177,147.88,147.79,20.0]
[1728827319593,6.7632,147.86,147.82,6.7649]
[1728827319770,6.0177,147.88,147.8,1.35292738]
[1728827319965,6.0177,147.88,147.79,20.0]
[1728827319966,15.58,147.9,147.81,1.35276275]
[1728827320189,6.7618,147.89,147.81,1.35276275]
[1728827320392,6.7618,147.89,147.84,6.7637]
[1728827323593,22.3414,147.9,147.86,6.763]
[1728827325890,22.3414,147.9,147.85,6.7634]
[1728827327481,22.3414,147.9,147.86,6.7631]
[1728827331300,22.3414,147.9,147.82,1.35253401]
[1728827331301,15.58,147.9,147.82,1.35253401]
[1728827331503,16.8971,147.96,147.88,6.7618]
[1728827331504,6.7602,147.93,147.88,6.7618]
[1728827332288,6.7602,147.93,147.85,1.3523147]
[1728827332492,6.7602,147.93,147.89,6.7617]
[1728827335478,6.7602,147.93,147.84,20.0]
[1728827335678,6.7602,147.93,147.88,6.762]
[1728827335876,6.7611,147.91,147.87,6.7626]
[1728827336679,15.58,147.94,147.87,20.0]
[1728827336680,6.7613,147.9,147.87,20.0]
[1728827337896,6.7622,147.89,147.84,6.7639]
[1728827338071,23.776884,147.93,147.85,20.0]
[1728827338072,6.7622,147.88,147.85,20.0]
[1728827338272,6.4803,147.92,147.84,6.7639]
[1728827338488,6.7619,147.89,147.85,6.7633]
[1728827339600,6.7622,147.88,147.85,20.0]
[1728827339898,6.7622,147.88,147.84,6.7636]
[1728827340274,6.7622,147.88,147.78,19.1983]
[1728827340494,6.7622,147.88,147.83,6.7644]
[1728827341287,6.7622,147.88,147.84,20.0]
[1728827354705,6.7627,147.87,147.84,20.0]
[1728827355002,15.5511,147.89,147.84,20.0]
[1728827355206,6.7635,147.86,147.79,20.0]
[1728827355391,6.7635,147.86,147.82,20.0]
[1728827356891,6.7636,147.85,147.81,6.7652]
[1728827360984,6.7645,147.83,147.79,20.0]
[1728827361209,6.7645,147.83,147.79,26.7661]
[1728827365018,15.8429,147.85,147.8,1.35318206]
[1728827365201,15.8429,147.85,147.81,6.765]
[1728827365401,22.6066,147.85,147.81,6.765]
[1728827372313,15.8429,147.85,147.75,20.0]
[1728827372625,15.8429,147.85,147.8,6.7658]
[1728827372626,6.7645,147.84,147.8,6.7658]
[1728827373728,6.7645,147.84,147.75,20.0]
[1728827374031,6.7645,147.84,147.8,20.0]
[1728827375308,6.7645,147.84,147.8,6.7658]
[1728827383838,6.7645,147.83,147.79,6.7662]
[1728827388931,6.7655,147.81,147.77,6.7672]
[1728827389938,6.7651,147.82,147.77,6.7672]
[1728827393435,6.7657,147.81,147.77,6.7672]
[1728827395141,6.7657,147.81,147.77,20.0]
[1728827395346,6.3128,147.83,147.77,20.0]
[1728827395632,6.7654,147.81,147.77,6.7672]
[1728827401536,6.7654,147.81,147.72,24.87913057]
[1728827401537,23.776884,147.8,147.71,6.0158]
[1728827401742,23.776884,147.8,147.7,13.0248]
[1728827402521,6.7668,147.78,147.74,6.7686]
[1728827402939,6.7668,147.78,147.75,20.0]
[1728827403745,6.7664,147.79,147.75,6.7678]
[1728827405228,23.776884,147.8,147.71,21.35369633]
[1728827405434,30.542884,147.8,147.76,6.7676]
[1728827405830,16.0568,147.81,147.77,6.7671]
[1728827407150,16.0568,147.81,147.78,6.7667]
[1728827407320,16.0568,147.81,147.79,6.7663]
[1728827407525,6.7644,147.84,147.8,6.7658]
[1728827410526,16.5235,147.85,147.8,6.7658]
[1728827410731,23.2872,147.85,147.81,6.7653]
[1728827411237,23.2872,147.85,147.75,20.0]
[1728827411441,23.2872,147.85,147.8,6.7657]
[1728827418950,6.7641,147.84,147.8,6.7657]
[1728827430262,13.3078,147.87,147.83,6.7645]
[1728827430437,6.7623,147.88,147.84,6.7637]
[1728827430755,22.595,147.89,147.85,6.7635]
[1728827431071,15.8332,147.89,147.86,6.7631]
[1728827431233,12.8224,147.91,147.86,6.7631]
[1728827431566,15.8332,147.93,147.89,6.7617]
[1728827432056,22.5932,147.93,147.88,6.7621]
[1728827433559,15.8332,147.93,147.89,6.7613]
[1728827433962,22.5932,147.93,147.84,1.3523874]
[1728827434147,22.5932,147.93,147.88,20.0]
[1728827436065,6.7604,147.92,147.88,20.0]
[1728827442554,6.7604,147.92,147.88,6.7621]
[1728827446967,15.8332,147.93,147.89,20.0]
[1728827447176,15.8332,147.93,147.85,1.35238843]
[1728827447357,22.5932,147.93,147.89,6.7616]
[1728827447886,6.7608,147.91,147.88,20.0]
[1728827448383,15.8332,147.93,147.88,20.0]
[1728827448384,22.5933,147.93,147.88,20.0]
[1728827450365,6.7607,147.92,147.86,6.7631]
[1728827450779,6.7607,147.92,147.87,20.0]
[1728827453259,23.776884,147.92,147.84,6.7639]
[1728827454162,23.776884,147.92,147.81,13.0248]
[1728827454483,23.776884,147.92,147.84,6.7639]
[1728827454484,6.7614,147.9,147.84,6.7639]
[1728827461087,40.678484,147.92,147.84,20.0]
[1728827461292,6.7628,147.87,147.82,20.0]
[1728827461468,6.7623,147.88,147.82,6.7648]
[1728827465078,23.776884,147.89,147.8,26.7657]
[1728827465273,6.7635,147.86,147.8,26.7657]
[1728827466606,6.7635,147.86,147.8,20.0]
[1728827466768,6.7635,147.86,147.82,20.0]
[1728827468495,6.7628,147.87,147.82,20.0]
[1728827469174,6.7628,147.87,147.82,6.7649]
[1728827472392,6.7628,147.87,147.78,20.0]
[1728827472590,6.7628,147.87,147.81,6.7653]
[1728827472786,6.7628,147.87,147.82,20.0]
[1728827481213,16.9058,147.88,147.78,20.0]
[1728827481537,16.0313,147.86,147.77,13.0248]
[1728827481808,6.7637,147.85,147.8,6.7658]
[1728827487112,22.7945,147.86,147.81,6.7654]
[1728827487307,22.7945,147.86,147.77,13.0248]
[1728827487498,6.7637,147.85,147.8,6.7657]
[1728827498705,6.7642,147.84,147.79,6.7663]
[1728827501117,16.0313,147.86,147.79,6.7663]
[1728827501320,6.7657,147.81,147.73,13.0248]
[1728827501524,6.7657,147.81,147.76,6.7676]
[1728827510348,6.7657,147.81,147.74,1.35342752]
[1728827510512,16.5029,147.82,147.79,6.7662]
[1728827511439,16.5029,147.82,147.78,6.7666]
[1728827512637,16.5029,147.82,147.74,20.0]
[1728827512820,23.2679,147.82,147.77,6.7671]
[1728827514729,16.5029,147.82,147.75,1.35340515]
[1728827514929,16.5029,147.82,147.79,6.7662]
[1728827515249,16.5029,147.82,147.78,6.7667]
[1728827521633,23.268,147.82,147.78,6.7667]
[1728827522143,23.268,147.82,147.74,20.0]
[1728827522316,6.7666,147.79,147.74,6.7684]
[1728827524933,6.7666,147.79,147.75,6.768]
[1728827526649,6.7666,147.79,147.71,21.35366198]
[1728827526840,6.7666,147.79,147.74,6.7685]
[1728827528446,6.7666,147.79,147.71,1.35366198]
[1728827528649,6.7666,147.79,147.75,6.7681]
[1728827529244,6.7666,147.79,147.74,6.7685]
[1728827530348,23.776884,147.8,147.71,20.0]
[1728827530561,23.776884,147.78,147.69,13.0248]
[1728827530856,23.776884,147.78,147.66,6.3736]
[1728827531449,6.7683,147.75,147.71,6.7697]
[1728827531835,39.349884,147.74,147.65,13.0248]
[1728827532023,46.118784,147.74,147.69,6.7708]
[1728827534347,15.573,147.74,147.71,6.7699]
[1728827537440,15.573,147.74,147.7,6.7703]
[1728827537655,15.573,147.74,147.68,6.7713]
[1728827537656,6.7694,147.73,147.68,6.7713]
[1728827537828,30.546884,147.72,147.66,26.7719]
[1728827538256,6.7703,147.71,147.63,20.0]
[1728827538828,23.776884,147.7,147.62,7.2172888]
[1728827539031,23.776884,147.7,147.66,6.7719]
[1728827539632,30.547384,147.7,147.66,6.7719]
[1728827540556,30.547384,147.7,147.65,6.7726]
[1728827540733,23.776884,147.68,147.63,6.7733]
[1728827540937,30.548584,147.68,147.63,6.7733]
[1728827548248,23.776884,147.68,147.62,7.6177888]
[1728827549467,6.7724,147.66,147.62,7.6177888]
[1728827549759,30.549684,147.65,147.62,0.8436888]
[1728827550073,6.7728,147.65,147.62,0.8436888]
[1728827552349,23.776884,147.64,147.62,0.8436888]
[1728827553252,30.550184,147.64,147.62,0.8436888]
[1728827555042,23.776884,147.64,147.62,0.8436888]
[1728827555247,30.550484,147.63,147.62,0.8436888]
[1728827556647,23.776884,147.63,147.62,0.8436888]
[1728827557245,16.6423,147.64,147.62,0.8436888]
[1728827558651,23.776884,147.63,147.62,0.8436888]
[1728827560774,30.550484,147.63,147.62,0.8436888]
[1728827564256,50.550484,147.63,147.62,0.8436888]
[1728827572058,30.550484,147.63,147.62,0.8436888]
[1728827572264,6.7736,147.63,147.62,0.8436888]
[1728827573778,30.550484,147.63,147.62,0.8436888]
[1728827574766,23.776884,147.63,147.62,0.8436888]
[1728827575658,30.550484,147.63,147.62,0.8436888]
[1728827582071,45.757084,147.63,147.62,0.8436888]
[1728827584364,65.757084,147.63,147.62,0.8436888]
[1728827587566,65.757084,147.63,147.62,8.88e-05]
[1728827594375,74.37469077,147.63,147.62,8.88e-05]
[1728827595274,65.757084,147.63,147.62,8.88e-05]
[1728827597266,86.107084,147.63,147.62,8.88e-05]
[1728827597471,65.757084,147.63,147.62,8.88e-05]
[1728827597682,74.37469077,147.63,147.62,8.88e-05]
[1728827604198,81.46210691,147.63,147.62,8.88e-05]
[1728827610703,101.85210691,147.63,147.62,8.88e-05]
[1728827610872,6.7778,147.54,147.53,13.0248]
[1728827611686,6.7778,147.54,147.5,12.9524]
[1728827612197,23.776884,147.58,147.5,12.9524]
[1728827612394,6.7779,147.54,147.5,12.9524]
[1728827613404,23.776884,147.56,147.5,12.9524]
[1728827615302,23.776884,147.56,147.51,6.7791]
[1728827620804,23.776884,147.56,147.53,6.7782]
[1728827621017,13.86323669,147.61,147.55,6.7773]
[1728827621186,6.7747,147.61,147.55,6.7773]
[1728827622684,23.776884,147.6,147.55,6.7773]
[1728827623087,23.776884,147.6,147.56,6.7768]
[1728827623417,26.7742,147.62,147.53,13.0248]
[1728827624513,23.776884,147.61,147.53,13.0248]
[1728827624717,30.551484,147.61,147.56,6.7767]
[1728827626011,21.9804,147.63,147.58,6.7759]
[1728827627596,23.776884,147.62,147.58,6.7759]
[1728827632991,23.776884,147.62,147.53,13.0248]
[1728827633191,6.7747,147.61,147.57,6.7763]
[1728827633392,23.776884,147.6,147.57,6.7763]
[1728827635210,15.2066,147.63,147.53,14.38031309]
[1728827635418,15.2066,147.63,147.58,6.7756]
[1728827635419,30.550984,147.62,147.58,6.7756]
[1728827636996,23.776884,147.62,147.58,6.7756]
[1728827638615,30.551184,147.62,147.58,6.7756]
[1728827640818,30.551184,147.62,147.57,6.7763]
[1728827643404,23.776884,147.6,147.53,13.0248]
[1728827643597,23.776884,147.62,147.53,13.0248]
[1728827644521,30.551384,147.62,147.53,13.0248]
[1728827644743,30.551384,147.62,147.54,1.35550097]
[1728827645407,23.776884,147.62,147.59,6.7751]
[1728827646220,16.2717,147.67,147.55,1.35526792]
[1728827646516,6.7723,147.66,147.61,6.7741]
[1728827646695,20.0,147.66,147.61,6.7741]
[1728827647017,16.2717,147.67,147.56,13.0248]
[1728827647203,23.0435,147.67,147.63,6.7735]